Workbook

Sheet Blad1
A1: Uitgangspunten:
A2: Vermogen | B2: =Blad2!C3 -> 1000000 | C2: blijft continu gelijk
B4: Dienstverlening | C4: Tarief in % | D4: Tarief in € | E4: Wijze van betalen | F4: Aan wie?
A5: Doorlopende kosten | B5: Doorlopende controle op halen en haalbaarheid doelen, onderhoud en updaten advies, klantcontact, relatiebeheer | C5: 0.0045 | D5: € 450,- per jaar | E5: Per factuur. Verrekening na elk kwartaal, via automatische incasso op beleggersrekening BinckBank | F5: VanEck
A6: Doorlopende kosten | B6: Beleggersrekening, administratie, transacties, bewaarloon | C6: 0.0015 | D6: € 150,- per jaar | E6: Per factuur. Verrekening op beleggers­rekening BinckBank | F6: BinckBank
A7: Doorlopende kosten | B7: Beheerkosten | C7: Profiel: Defensief -0,16% Profiel: Gematigd -0,17% Profiel: Neutraal -0,18% Profiel: Offensief -0,19% Profiel: Zeer offensief -0,20% | D7: Profiel: Defensief -€ 170 Profiel: Gematigd -€ 190 Profiel: Neutraal -€ 220 Profiel: Offensief -€ 250 Profiel: Zeer offensief - €280 | E7: In de koersen | F7: VanEck
A8: Totale doorlopende kosten per jaar | C8: Profiel: Defensief -0,76% Profiel: Gematigd -0,77% Profiel: Neutraal -0,78% Profiel: Offensief -0,79% Profiel: Zeer offensief -0,80% | D8: Profiel: Defensief -€ 770 Profiel: Gematigd -€ 790 Profiel: Neutraal -€ 820 Profiel: Offensief -€ 850 Profiel: Zeer offensief -€ 880
A11: Profiel | B11: Doorlopende kostenVanEck (uitbesteed aan Fonja) | C11: Doorlopende kosten VanEck | D11: Doorlopende kosten SaxoBank | E11: totaal
A12: Defensief | B12: =IF(0.0045*$B$2<2420,0.0045*$B$2,2420) -> 2420 | C12: =0.0016*$B$2 -> 1600 | D12: =0.0015*$B$2 -> 1500 | E12: =SUM(B12:D12) -> 5520
A13: Gematigd defensief | B13: =IF(0.0045*$B$2<2420,0.0045*$B$2,2420) -> 2420 | C13: =0.0017*$B$2 -> 1700 | D13: =0.0015*$B$2 -> 1500 | E13: =SUM(B13:D13) -> 5620
A14: Neutraal | B14: 2420 | C14: =0.0018*$B$2 -> 1800 | D14: 1500 | E14: 5720
A15: Offensief | B15: 2420 | C15: =0.0019*$B$2 -> 1900 | D15: 1500 | E15: 5820
A16: Zeer offensief | B16: 2420 | C16: =0.002*$B$2 -> 2000 | D16: 1500 | E16: 5920
A17: Alle profielen
A18: -
A20: Profiel | B20: Doorlopende kosten VanEck (uitbesteed aan Fonja) | C20: Doorlopende kosten VanEck | D20: Doorlopende kosten SaxoBank | E20: totaal
A21: Defensief | B21: =IF(0.0055*$B$2<2958,0.0055*$B$2,2958) -> 2958 | C21: =0.0016*$B$2 -> 1600 | D21: =0.0015*$B$2 -> 1500 | E21: =SUM(B21:D21) -> 6058
A22: Gematigd defensief | B22: =IF(0.0055*$B$2<2958,0.0055*$B$2,2958) -> 2958 | C22: =0.0017*$B$2 -> 1700 | D22: =0.0015*$B$2 -> 1500 | E22: =SUM(B22:D22) -> 6158
A23: Neutraal | B23: =IF(0.0055*$B$2<2958,0.0055*$B$2,2958) -> 2958 | C23: =0.0018*$B$2 -> 1800 | D23: 1500 | E23: 6258
A24: Offensief | B24: =IF(0.0055*$B$2<2958,0.0055*$B$2,2958) -> 2958 | C24: =0.0019*$B$2 -> 1900 | D24: 1500 | E24: 6358
A25: Zeer offensief | B25: =IF(0.0055*$B$2<2958,0.0055*$B$2,2958) -> 2958 | C25: =0.002*$B$2 -> 2000 | D25: 1500 | E25: 6458
A31: Particulier
A32: BV

Sheet Blad2
A1: Rekenvoorbeeld kosten VanEck Beheerd Indexbeleggen
A3: Met welk bedrag wilt u gaan beleggen? | C3: 1000000
A5: Van welk beleggingsprofiel wilt u de kosten zien? | C5: Neutraal
C8: Particulier | E8: Defensief | G8: =C5 -> Neutraal | I8: Neutraal | K8: Offensief | M8: Zeer offensief | P8: Besloten Vennootschap | R8: =C5 -> Neutraal
E9: kosten in € | F9: Kosten in % | G9: kosten in € | H9: Kosten in % | I9: kosten in € | J9: Kosten in % | K9: kosten in € | L9: Kosten in % | M9: kosten in € | N9: Kosten in % | R9: kosten in € | S9: Kosten in %
C10: Kosten relatiebeheer-activiteiten | E10: =VLOOKUP($E$8,Blad1!$A$12:$E$16,2,FALSE) -> 2420 | F10: =E10/$C$3 -> 0.00242 | G10: =VLOOKUP($G$8,Blad1!$A$12:$E$16,2,FALSE) -> 2420 | H10: =G10/$C$3 -> 0.00242 | I10: =VLOOKUP($I$8,Blad1!$A$12:$E$16,2,FALSE) -> 2420 | J10: =I10/$C$3 -> 0.00242 | K10: =VLOOKUP($K$8,Blad1!$A$12:$E$16,2,FALSE) -> 2420 | L10: =K10/$C$3 -> 0.00242 | M10: =VLOOKUP($M$8,Blad1!$A$12:$E$16,2,FALSE) -> 2420 | N10: =M10/$C$3 -> 0.00242 | P10: Kosten relatiebeheer-activiteiten | R10: =VLOOKUP($G$8,Blad1!$A$21:$E$25,2,FALSE) -> 2958 | S10: =R10/$C$3 -> 0.002958
C11: Kosten SaxoBank | E11: =VLOOKUP($E$8,Blad1!$A$12:$E$16,4,FALSE) -> 1500 | F11: =E11/$C$3 -> 0.0015 | G11: =VLOOKUP($G$8,Blad1!$A$12:$E$16,4,FALSE) -> 1500 | H11: 0.0015 | I11: =VLOOKUP($I$8,Blad1!$A$12:$E$16,4,FALSE) -> 1500 | J11: =I11/$C$3 -> 0.0015 | K11: =VLOOKUP($K$8,Blad1!$A$12:$E$16,4,FALSE) -> 1500 | L11: =K11/$C$3 -> 0.0015 | M11: =VLOOKUP($M$8,Blad1!$A$12:$E$16,4,FALSE) -> 1500 | N11: =M11/$C$3 -> 0.0015 | P11: Kosten SaxoBank | R11: =VLOOKUP($G$8,Blad1!$A$21:$E$25,4,FALSE) -> 1500 | S11: =R11/$C$3 -> 0.0015
C12: Samengestelde productkosten | E12: =VLOOKUP($E$8,Blad1!$A$12:$E$16,3,FALSE) -> 1600 | F12: 0.0016 | G12: =VLOOKUP($G$8,Blad1!$A$12:$E$16,3,FALSE) -> 1800 | H12: 0.0018 | I12: =VLOOKUP($I$8,Blad1!$A$12:$E$16,3,FALSE) -> 1800 | J12: =I12/$C$3 -> 0.0018 | K12: =VLOOKUP($K$8,Blad1!$A$12:$E$16,3,FALSE) -> 1900 | L12: =K12/$C$3 -> 0.0019 | M12: =VLOOKUP($M$8,Blad1!$A$12:$E$16,3,FALSE) -> 2000 | N12: =M12/$C$3 -> 0.002 | P12: Samengestelde productkosten | R12: =VLOOKUP($G$8,Blad1!$A$21:$E$25,3,FALSE) -> 1800 | S12: 0.0018
C13: Totaalkosten | E13: =SUM(E10:E12) -> 5520 | F13: 0.00552 | G13: =SUM(G10:G12) -> 5720 | H13: 0.00572 | I13: =SUM(I10:I12) -> 5720 | J13: =I13/$C$3 -> 0.00572 | K13: =SUM(K10:K12) -> 5820 | L13: =K13/$C$3 -> 0.00582 | M13: =SUM(M10:M12) -> 5920 | N13: =M13/$C$3 -> 0.00592 | P13: Totaalkosten | R13: =SUM(R10:R12) -> 6258 | S13: 0.006258
A15: Disclaimer: Dit rekenvoorbeeld geeft u een indicatie van de kosten. Aan deze indicatie kunnen geen rechten worden ontleend.

Sheet Blad3 (hidden)
